Cogmind - Beta 16 @@@ ROGUE MODE // 2025.11.04 @ 20:52:14 Player: Naughtyusername Result: Self-destructed Performance ------------- Evolutions (1) 500 Regions Visited (4) 800 Robots Destroyed (127) 635 Value Destroyed (2783) 2783 Prototype IDs (3) 60 Alien Tech Used (0) 0 Bonus (318) 318 TOTAL SCORE: 5096 Bonus ------- High Alert Combat Kills 318 Cogmind --------- Core Integrity 19/400 Matter 106/300 Energy 100/100 System Corruption 3% Temperature Cool (0) Movement Rolling (150) Ox4 Location -9/Storage Parts ------- > --- POWER (1) -------- (None) > --- PROPULSION (3) --- Light Treads Armored Wheel > --- UTILITY (3) ------ High-capacity Storage Unit Medium Armor Plating Hardened Light Armor Plating > --- WEAPON (2) ------- Improved Assault Rifle Improved Assault Rifle > --- INVENTORY (20) --- Light Treads Light Treads Light Treads Light Treads Light Treads Armored Wheel Large Storage Unit Seismic Detector Transport Network Coupler Spread Laser Improved Assault Rifle Improved Assault Rifle Improved Assault Rifle Improved Assault Rifle Improved Assault Rifle Improved Assault Rifle Mini Grenade Launcher Mini Grenade Launcher Datajack Maul Peak State ------------ > --- POWER ------------ Heavy Ion Engine > --- PROPULSION ------- Light Treads Light Treads Armored Wheel > --- UTILITY ---------- High-capacity Storage Unit Medium Armor Plating Medium Armor Plating > --- WEAPON ----------- Improved Assault Rifle Improved Assault Rifle > --- INVENTORY -------- Light Treads Light Treads Light Treads Light Treads Light Treads Armored Wheel Large Storage Unit Seismic Detector Transport Network Coupler Medium Armor Plating Spread Laser Improved Assault Rifle Improved Assault Rifle Improved Assault Rifle Improved Assault Rifle Mini Grenade Launcher Mini Grenade Launcher Datajack Maul [Rating: 21] Favorites ----------- Power Ion Engine Engine Ion Engine Propulsion Light Treads Treads Light Treads Wheel Armored Wheel Flight Unit Improved Flight Unit Utility Large Storage Unit Device Seismic Detector Storage Large Storage Unit Protection Light Armor Plating Weapon Assault Rifle Energy Gun Medium Laser Ballistic Gun Assault Rifle Launcher Grenade Launcher Special Weapon Mining Laser Impact Weapon Maul Build | -11 -10 -10 -9 -9 ------- Run | Yrd Mat Min Mat Sto Slots Evolved 2 | . . . 2 . Power . | . . . . . Propulsion 1 | . . . 1 . Utility 1 | . . . 1 . Weapon . | . . . . . Parts Attached 55 | 8 6 . 24 17 Power 5 | 1 . . 3 1 Engine 5 | 1 . . 3 1 Core . | . . . . . Reactor . | . . . . . Propulsion 16 | 2 . . 9 5 Treads 12 | 2 . . 6 4 Leg . | . . . . . Wheel 3 | . . . 2 1 Hover . | . . . . . Flight 1 | . . . 1 . Utility 15 | 2 2 . 7 4 Device 1 | 1 . . . . Storage 3 | 1 1 . . 1 Processor . | . . . . . Hackware . | . . . . . Protection 11 | . 1 . 7 3 Artifact . | . . . . . Weapon 19 | 3 4 . 5 7 Energy Gun 2 | 2 . . . . Energy Cannon . | . . . . . Ballistic Gun 13 | 1 2 . 5 5 Ballistic Cannon . | . . . . . Launcher 2 | . . . . 2 Special Weapon 1 | . 1 . . . Impact Weapon 1 | . 1 . . . Slashing Weapon . | . . . . . Piercing Weapon . | . . . . . Special Melee Weapon . | . . . . . Unidentified Prototypes 1 | . . . 1 . Parts Lost 20 | . . . 12 8 Power 4 | . . . 3 1 Propulsion 5 | . . . 4 1 Utility 6 | . . . 3 3 Weapon 5 | . . . 2 3 Highest Loss Streak 5 | . . . 5 4 To Critical Strikes . | . . . . . Average Backups 13 | . 9 14 14 17 Power 1 | . 1 2 . . Propulsion 2 | . 1 3 2 4 Utility 2 | . 2 3 3 3 Weapon 6 | . 3 6 7 8 Tool/Special . | . . . . . Unused Backups 20 | . . . 4 16 Power . | . . . . . Propulsion 7 | . . . 3 4 Utility 1 | . . . . 1 Weapon 11 | . . . 1 10 Tool/Special 1 | . . . . 1 Average Slot Usage (%) 95 | . 97 100 89 95 Engine 11 | . 14 14 9 7 Treads 25 | . 27 28 25 22 Wheel 4 | . . . 6 11 Device 3 | . 1 12 2 . Storage 12 | . 15 14 11 11 Protection 11 | . 7 1 12 21 Energy Gun 1 | . 4 . . . Ballistic Gun 22 | . 23 28 21 20 Peak Build Rating 21 | 7 9 8 16 21 Average Rating 11 | 5 7 8 11 18 On Entrance 7 | . 7 8 8 15 Avg Prop Armor Cover (%) 12 | . . . 14 11 Naked Turns . | . . . . . Heaviest Build 68 | 15 34 32 40 68 Greatest Support 60 | 40 40 40 60 16 Greatest Overweight (x) 5 | . 1 . 2 5 Average Overweight (x) 1 | . . . 1 4 Largest Inventory Capacity 20 | 8 15 15 15 20 Average Capacity 15 | 7 13 15 15 18 Most Carried 20 | 2 14 15 15 20 Average Carried 13 | . 9 14 14 17 Final Capacity 20 | 8 15 15 15 20 Final Carried 20 | 1 14 15 15 20 Class Distribution -------------------- 81% | Mutant 18% | Scavenger-Mutant Dominant Class ---------------- Mutant | -10/Materials Mutant | -10/Mines Scavenger-Mutant | -9/Materials Mutant | -9/Storage Resources | -11 -10 -10 -9 -9 ----------- Run | Yrd Mat Min Mat Sto Matter Collected 2586 | 307 372 24 930 953 Remotely . | . . . . . Salvage Created 4500 | 213 780 29 1907 1571 Parts 305 | 15 42 2 132 114 Haulers Intercepted 10 | . 2 . 4 4 Recyclers Shooed 8 | 1 2 . 2 3 Parts Field Recycled . | . . . . . Retrieved Matter . | . . . . . Parts Self-Destructed . | . . . . . Prevented . | . . . . . Parts Restored . | . . . . . Kills | -11 -10 -10 -9 -9 ------- Run | Yrd Mat Min Mat Sto Combat Hostiles Destroyed 82 | . 14 . 37 31 Guns 73 | . 14 . 37 22 AOE 9 | . . . . 9 Classes Destroyed 12 | 2 5 . 4 1 Worker 14 | . 4 1 2 7 Builder 6 | . . . 2 4 Tunneler 5 | 5 . . . . Hauler 10 | . 2 . 4 4 Recycler 6 | 1 1 . 3 1 Mechanic 1 | . . . . 1 Watcher 3 | . 1 . 2 . Swarmer 22 | . 3 . 14 5 Grunt 36 | . 11 . 10 15 Brawler 3 | . . . 2 1 Duelist 2 | . . . 1 1 Sentry 19 | . . . 10 9 Best Kill Streak 9 | 6 5 1 9 9 Combat Bots Only 7 | . 3 . 7 5 Max Kills in Single Turn 4 | 1 2 1 2 4 Gunslinging 1 | . . . 1 . Exploded 3 | . . . . 3 Melee . | . . . . . Uniques/NPCs Destroyed . | . . . . . Combat | -11 -10 -10 -9 -9 -------- Run | Yrd Mat Min Mat Sto Hostile Shots Fired 407 | . 63 . 188 156 Missed 107 | . 18 . 51 38 Hits 300 | . 45 . 137 118 Melee 11 | . . . 6 5 Projectile 289 | . 45 . 131 113 Critical Strikes 5 | . . . 3 2 Damage Taken 3777 | . 514 . 1727 1536 Core 462 | . 81 . 223 158 Absorbed by Shields . | . . . . . Core Remaining (%) 83 | 100 . 67 . . Volleys Fired 322 | 9 74 1 124 114 Largest 2 | 2 2 1 2 2 Hottest 100 | 70 100 20 100 53 Shots Fired 611 | 18 146 1 233 213 Gun 599 | 18 145 1 227 208 Cannon . | . . . . . Launcher 5 | . . . . 5 Special 7 | . 1 . 6 . Kinetic 548 | 9 103 1 227 208 Thermal 58 | 9 43 . 6 . Explosive 5 | . . . . 5 Electromagnetic . | . . . . . Robot Hit Streak 23 | 4 6 1 21 23 Robot Miss Streak 5 | 1 4 . 5 4 Penetration Max . | . . . . . Secondary Targets 7 | . . . 6 1 Max Gunslinging Chain 1 | . . . 1 1 Shots Hit Robots 404 | 10 89 1 163 141 Core Hits 193 | 7 38 1 72 75 Critical Kills . | . . . . . Critical Parts Destroyed 2 | . . . 1 1 Critical Strikes 5 | 2 1 . 1 1 Burn 3 | 2 1 . . . Destroy 2 | . . . 1 1 Melee Attacks 15 | . 2 . 3 10 Impact 15 | . 2 . 3 10 Slashing . | . . . . . Piercing . | . . . . . Sneak Attacks . | . . . . . Combat Hostiles . | . . . . . Follow-up Attacks . | . . . . . Damage Inflicted 6780 | 126 1228 66 2344 3016 Guns 5923 | 126 1181 13 2318 2285 Cannons . | . . . . . Explosions 731 | . . . . 731 Melee . | . . . . . Ramming 126 | . 47 53 26 . Kinetic 5486 | 39 831 13 2318 2285 Thermal 437 | 87 350 . . . Explosive 731 | . . . . 731 Electromagnetic . | . . . . . Impact . | . . . . . Slashing . | . . . . . Piercing . | . . . . . Highest Corruption 3 | . . . 3 3 Average Corruption 3 | . . . 3 3 Corruption Purged . | . . . . . Corruption Blocked . | . . . . . Effects 31 | . . . 6 25 Message Errors 2 | . . . 1 1 Matter Fused 11 | . . . 1 10 Heat Flow Errors 4 | . . . 1 3 Energy Discharges 2 | . . . 1 1 Parts Rejected 2 | . . . . 2 Data Loss (minor) 6 | . . . 1 5 Data Loss (major) 1 | . . . 1 . Misfires 1 | . . . . 1 Weapon Failures 2 | . . . . 2 Overload Shots . | . . . . . Overflow Damage . | . . . . . Projectiles . | . . . . . Explosions . | . . . . . Melee . | . . . . . Knockbacks 5 | . 2 2 1 . Impact 5 | . 2 2 1 . Kinetic . | . . . . . Secondary . | . . . . . Self-Inflicted Damage 8 | . . . 8 . Shots . | . . . . . Rammed 21 | . 12 5 4 . Targets Rammed 21 | . 12 5 4 . Kicked . | . . . . . Crushed . | . . . . . Highest Temperature 234 | 81 234 . 94 220 Average Temperature 47 | 41 85 . 21 30 Received Heat Transfer 1323 | . 252 . 450 621 Siege Activations . | . . . . . Martial Activations . | . . . . . Shielding Activations . | . . . . . Robots Disrupted . | . . . . . Combat Hostiles . | . . . . . Robots Corrupted . | . . . . . Combat Hostiles . | . . . . . Parts Fried . | . . . . . Impact Corruptions . | . . . . . Robots Melted . | . . . . . Combat Hostiles . | . . . . . Parts Melted 2 | . 2 . . . Heat Transferred 1517 | 407 1110 . . . Parts Sabotaged . | . . . . . Parts Stolen . | . . . . . Parts Stripped . | . . . . . Power Chain Reactions . | . . . . . Alert | -11 -10 -10 -9 -9 ------- Run | Yrd Mat Min Mat Sto Maximum Alert Level 3 | . 1 . 2 3 Low Security (%) 56 | 100 99 100 31 . Level 1 16 | . . . 29 33 Level 2 24 | . . . 39 56 Level 3 2 | . . . . 10 Level 4 . | . . . . . Level 5 . | . . . . . High Security . | . . . . . Max Security . | . . . . . Peak Influence 825 | 20 202 54 608 825 Initial 256 | . . 54 . 256 Average 228 | 5 93 4 323 468 Influence Increases 3014 | 30 594 26 1251 1113 Destroy 0b10 Robot/C 1640 | . 280 . 740 620 Destroy 0b10 Robot/NC 225 | 30 40 5 65 85 Destroy Leader 426 | . 56 . 192 178 Successful Hack 139 | . 49 21 49 20 Select Force Hacks 150 | . 60 . 60 30 Disable Machine 90 | . . . 15 75 Destroy Structure 74 | . 4 . 10 60 Lose Combat Pursuer 270 | . 105 . 120 45 Influence Decreases 2203 | 30 454 166 643 910 Entered New Map 438 | . . 86 . 352 Time Decay 1545 | 30 454 80 503 478 Lost Part 200 | . . . 120 80 Lost Ally 20 | . . . 20 . Squads Dispatched 15 | . 4 . 4 7 Investigation 6 | . 3 . 2 1 Extermination . | . . . . . Reinforcement 4 | . 1 . 1 2 Assault 2 | . . . 1 1 Garrison 3 | . . . . 3 Intercept . | . . . . . Searches Triggered . | . . . . . Construction Impeded . | . . . . . Haulers Reinforced . | . . . . . Active Scanning Responses . | . . . . . Cargo Convoy Interrupts . | . . . . . Stealth | -11 -10 -10 -9 -9 --------- Run | Yrd Mat Min Mat Sto Distress Signals 17 | . 6 . 6 5 Communications Jammed . | . . . . . Distress Signals . | . . . . . Times Spotted 135 | . 27 . 61 47 Peak Tracking Total 7 | . 4 . 7 5 Tactical Retreats 10 | . 4 . 3 3 Traps | -11 -10 -10 -9 -9 ------- Run | Yrd Mat Min Mat Sto Traps Triggered 3 | . 3 . . . Indirectly . | . . . . . Trap Hack Attempts . | . . . . . Triggered . | . . . . . Disarmed . | . . . . . Reprogrammed . | . . . . . Reused . | . . . . . Traps Extracted . | . . . . . Installed . | . . . . . Triggered . | . . . . . Machines | -11 -10 -10 -9 -9 ---------- Run | Yrd Mat Min Mat Sto Machines Disabled 7 | . . . 2 5 Max in Single Turn 1 | . . . 1 1 Machines Repaired . | . . . . . Machines Dismantled . | . . . . . Machines Sabotaged . | . . . . . Overloaded Fab Kills . | . . . . . Hacking | -11 -10 -10 -9 -9 --------- Run | Yrd Mat Min Mat Sto Machines Accessed 34 | . 9 1 15 9 Terminals 26 | . 7 1 11 7 Fabricators . | . . . . . Repair Stations . | . . . . . Recycling Units 5 | . 2 . 2 1 Scanalyzers 2 | . . . 2 . Garrison Access 1 | . . . . 1 Total Hacks 112 | . 32 8 53 19 Successful 69 | . 20 6 34 9 Failed 41 | . 11 2 18 10 Catastrophic 2 | . . . . 2 Database Lockouts 2 | . 1 . 1 . Manual 89 | . 26 8 41 14 Terminals 95 | . 28 8 45 14 Fabricators . | . . . . . Repair Stations . | . . . . . Recycling Units 10 | . 4 . 4 2 Scanalyzers 4 | . . . 4 . Garrison Access 3 | . . . . 3 Terminal Hacks 23 | . 8 4 7 4 Part Schematic 1 | . . . 1 . Robot Analysis 6 | . 1 4 1 . Prototype ID Bank 1 | . 1 . . . Open Door 2 | . . . . 2 Branch Access Points 1 | . . . 1 . Terminal Index 3 | . 1 . 1 1 Alert Level 1 | . . . . 1 Patrol Status 1 | . 1 . . . Reinforcement Status 1 | . 1 . . . Hauler Manifests 3 | . 1 . 2 . Registered Components 2 | . 2 . . . Zone Layout 1 | . . . 1 . Fabricator Hacks . | . . . . . Repair Station Hacks . | . . . . . Recycling Unit Hacks 1 | . . . 1 . Retrieve Components 1 | . . . 1 . Scanalyzer 3 | . . . 3 . Retrieve Study 3 | . . . 3 . Garrison Access Hacks . | . . . . . Unauthorized Hacks 42 | . 12 2 23 5 Terminals 37 | . 10 2 21 4 Track 10 | . 1 1 7 1 Assimilate 2 | . . . 2 . Botnet 9 | . 3 1 5 . Operators 2 | . 1 . 1 . Skim 14 | . 5 . 6 3 Fabricators . | . . . . . Repair Stations . | . . . . . Recycling Units 5 | . 2 . 2 1 Tunnel 5 | . 2 . 2 1 Scanalyzers . | . . . . . Garrison Access . | . . . . . Data Cores Recovered . | . . . . . Used . | . . . . . Hacking Detections 29 | . 9 1 13 6 Full Trace Events . | . . . . . Feedback Events . | . . . . . Feedback Blocked . | . . . . . Robot Schematics Acquired . | . . . . . Robots Built . | . . . . . Authchips . | . . . . . Time . | . . . . . Total Robot Build Rating . | . . . . . Part Schematics Acquired 1 | . . . 1 . Parts Built . | . . . . . Authchips . | . . . . . Time . | . . . . . Total Part Build Rating . | . . . . . Part Studies Acquired 3 | . . . 3 . Parts Repaired . | . . . . . Time . | . . . . . Parts Recycled . | . . . . . Recycled Matter . | . . . . . Retrieved Matter . | . . . . . Retrieved Components 3 | . . . 3 . Parts Scanalyzed . | . . . . . Part Schematics Acquired . | . . . . . Parts Damaged . | . . . . . Bothacking | -11 -10 -10 -9 -9 ------------ Run | Yrd Mat Min Mat Sto Used RIF Installer . | . . . . . Robots Hacked . | . . . . . Non-combat . | . . . . . Combat . | . . . . . Robot Hacks Applied . | . . . . . Relay Couplers Released . | . . . . . Fabnet Peak Effective % . | . . . . . Robots Rewired . | . . . . . Allies Hacked . | . . . . . Hacks Repelled . | . . . . . Allies | -11 -10 -10 -9 -9 -------- Run | Yrd Mat Min Mat Sto Total Allies 2 | . . . 2 . Largest Group 1 | . . . 1 . Highest-Rated Group 10 | . . . 10 . Highest-Rated Ally 10 | . . . 10 . Total Orders . | . . . . . Ally Attacks . | . . . . . Total Damage . | . . . . . Kills . | . . . . . Allies Corrupted . | . . . . . Allies Melted . | . . . . . Intel | -11 -10 -10 -9 -9 ------- Run | Yrd Mat Min Mat Sto Active Infowar (turns) 1382 | 19 178 913 272 . Seismic 1382 | 19 178 913 272 . Robot Analysis Total 6 | . 1 4 1 . Derelict Logs Recovered 1 | . . 1 . . Drone Launches . | . . . . . Drone Recoveries . | . . . . . Exploration | -11 -10 -10 -9 -9 ------------- Run | Yrd Mat Min Mat Sto Turns Passed 5193 | 120 1386 983 1476 1228 Spaces Moved 2513 | 53 604 607 738 511 Core 4 | 4 . . . . Treads 1493 | 49 604 607 233 . Legs . | . . . . . Wheels 1016 | . . . 505 511 Hover . | . . . . . Flight . | . . . . . Fastest Speed 50 | 50 160 160 105 120 Average Speed 149 | 151 160 160 130 151 Slowest Speed 240 | 160 240 160 160 165 Overloaded Moves . | . . . . . Propulsion Burnouts . | . . . . . Robots Hopped . | . . . . . Potential Cave-ins . | . . . . . Cave-ins Triggered . | . . . . . Exploration Rate (%) 74 | 3 94 99 94 80 Regions Visited 4 Branch Regions 2 Pre-discovered Areas 7 | . 3 . 3 1 Known Exits Taken 3 | . 1 1 1 . Unknown Exits Taken 1 | 1 . . . . Scrap Searched 1 | . . 1 . . Spaces Dug 13 | . 3 . 6 4 Terrain Destroyed 61 | . 3 . 7 51 Melee 8 | . 2 . 2 4 Projectile 6 | . 1 . 5 . AOE 47 | . . . . 47 Terrain Rammed . | . . . . . Walls Destroyed . | . . . . . Machines Disabled . | . . . . . Actions | -11 -10 -10 -9 -9 --------- Run | Yrd Mat Min Mat Sto Total 3271 | 72 860 614 1003 722 Wait 234 | . 143 . 63 28 Move 2509 | 52 603 606 737 511 Hop . | . . . . . Pick Up 44 | 1 12 1 18 12 Fast Attach 22 | 8 4 . 6 4 Attach 16 | . 1 . 10 5 Detach 3 | 1 2 . . . Swap 54 | . 6 1 18 29 Drop 31 | 1 1 . 20 9 Fire 322 | 9 74 1 124 114 Melee 15 | . 2 . 3 10 Ram 3 | . . . 3 . Kick . | . . . . . Crush 18 | . 12 5 1 . Escape Stasis . | . . . . . Rewire . | . . . . . Trap . | . . . . . Miscellaneous . | . . . . . Route ------- -11/Scrapyard -10/Materials (discovered 6 exits: *Mat x3 / *Min x2 / Sub) -10/Mines (discovered 4 exits: *Mat x2 / *Exi / *Sub) -9/Materials (discovered 6 exits: *Mat x3 / *Min / *Sto x2) -9/Storage (discovered 2 exits: *Mat / *Rec) History --------- Turn | Location | Event 5 | -11/Scrapyard | Discovered new exit (range 15) 121 | -11/Scrapyard | Entered Materials 320 | -10/Materials | Build established: Mutant 639 | -10/Materials | Discovered new exit (range 8) 796 | -10/Materials | Central database locked down 848 | -10/Materials | Learned 4 Recycling zone layouts 892 | -10/Materials | Learned 4 Recycling zone layouts 900 | -10/Materials | Discovered new exit (range 3) 954 | -10/Materials | Identified exit to Materials 969 | -10/Materials | Learned location of 2 exits from Mines 973 | -10/Materials | Learned location of 1 exit from Storage 974 | -10/Materials | Identified exit to Mines 974 | -10/Materials | Identified exit to Subcaves 1015 | -10/Materials | Loaded intel: 21 non-interactive machine locations 1507 | -10/Materials | Entered Mines 1508 | -10/Mines | Identified exit to Exiles 1551 | -10/Mines | A weapon hastily lodged in a ceiling crevice suddenly fell to the ground 1782 | -10/Mines | Discovered exit to Materials (range 5) 1785 | -10/Mines | Learned Materials stockpile data 2134 | -10/Mines | Deemed a non-threat by the Exiles lab entrance 2429 | -10/Mines | Discovered exit to Subcaves (range 6) 2490 | -10/Mines | Entered Materials 2490 | -9/Materials | Evolved 2 slots: Propulsion x1, Utility x1 2491 | -9/Materials | Identified exit to Mines 2801 | -9/Materials | Destroyed 7 combat bots 2866 | -9/Materials | Discovered new exit (range 7) 2876 | -9/Materials | Discovered new exit (range 9) 2911 | -9/Materials | Identified exit to Materials 2962 | -9/Materials | Learned 4 Recycling zone layouts 2977 | -9/Materials | Discovered new exit (range 11) 3004 | -9/Materials | Learned 2 Materials zone layouts 3034 | -9/Materials | Learned location of 1 exit from Storage 3067 | -9/Materials | Build established: Scavenger-Mutant 3090 | -9/Materials | Learned Materials stockpile data 3133 | -9/Materials | Learned location of Recycling (-9) 3280 | -9/Materials | Lost 3 parts (1n2u) 3337 | -9/Materials | Central database locked down 3533 | -9/Materials | Identified exit to Storage 3690 | -9/Materials | First assault squad dispatched 3747 | -9/Materials | Core integrity fell below 50% 3785 | -9/Materials | Lost 5 parts (1p3n1w) 3966 | -9/Materials | Entered Storage 3967 | -9/Storage | Identified exit to Recycling 4044 | -9/Storage | Build established: Mutant 4208 | -9/Storage | Used back door to open Recycling access 4737 | -9/Storage | Garrison activated, responded to threat 4793 | -9/Storage | Core integrity fell below 20% 4837 | -9/Storage | Lost 4 parts (2u2w) 5166 | -9/Storage | First assault squad dispatched 5194 | -9/Storage | Self-destructed Last Messages --------------- 05148_ M-13 Machinist resupplies. 05161_ System corrupted: Imp. Assault Rifle jammed. 05161_ G-34 Mercenary destroyed. 05162_ R-06 Scavenger collects Heat Sink. 05162_ K-01 Serf collects debris. 05166_ ALERT: Unidentified disturbance in Zone 8Q, assault force dispatched. 05166_ Hvy. Ion Engine destroyed. 05167_ G-34 Mercenary destroyed. 05168_ K-01 Serf collects debris. 05173_ K-01 Serf destroyed. 05188_ C-45 Heavy ARC bursts open, deploying its payload. 05188_ G-47 Trooper unfolds itself. 05188_ L-31 Rogue unfolds itself. 05188_ G-34 Mercenary unfolds itself. 05188_ B-36 Bruiser unfolds itself. 05188_ M-13 Machinist unfolds itself. 05193_ Lgt. Treads+ destroyed. Map ----- +----------------------------------------------------+ | ?????????######???# """#### # | | ??????????????????# %G"##"" """ """ # | | ?????????????????## """##"Y """ """ # | | ????????????????### ####?"" """ """ # | | ????????????????# # ##????# # | | ?????????######## # ##????# # | | ?????????# # ##????# # | | ?????????# ^ = # ##???## % ! # | | ?????????# # ###########+##### | | ?????????# """ # | | ?????????# """ + % % | | ?????????# """ # =% [ %% | | ?????????# """ ###+########+##+##### | | ?????????? """???#%! !#= = # | | ??????????? ???#[= """# """" # | | ????????????####????# """# "[!" # | | ????????????????????# = """# " # | | ????????????????????# ! # "!!" # | | ????????????????????# """# "![" # | | ????????????????????# """# """" # | | ????????????????????# """# ??? # | | ????????????????????# # ???? # | | ??????????#+###+#########/#######????#? | | ??????????# g % #??????? | | ??????????+ ! g m #??????? | | ??????????# @ % lb %% #??????? | | ??????????###+#+#########+######??????? | | ????????????????????# [%= ####????? | | ????????????????????# """ T """#????? | | ????????????????????# """ m R"#????? | | ????????????????????# """ !["""#????? | | ????????????????????# =%####????? | | ????????????????????# !!#??????? | | ????????????????????# ##??????? | | ????????????????????# #???????? | | ????????????????????###""T""###???????? | | ??????????????????????#"""""#???????? | | ??????????????????????#######???????? | | ???????##########????????????###?????# | | ???????# #???#############????# | | ???????# #???# #"#????# | | ???????# """" #???# """ """ ###????# | | ???????# ""]!" #???# """ """ ##?????+ | | ???????# """=]" #???# """ """ ##?????# | | ???????# "%%""" #???# ##?????# | | ???????# "]%"" #???# ##?????# | | ???????# """ #???# ##?????# | | ???????# #???# = = #?????## | | ??????######+############+########### | | ??????# [%* | +----------------------------------------------------+ Best States ------------- Heat Dissipation 28 Energy Generation 14 Energy Capacity 280 Matter Stores 300 Matter Capacity 300 Sight Range 16 Terrain Scan Density 10 Armor Coverage 450 Power Shielding 33 Evasion (%) 40 Recoil Reduction 3 Item Schematics ----------------- Hcp. Storage Unit | -9/Materials | Hacked Robot Schematics ------------------ None Fabricated ------------ Nothing Repaired ---------- Nothing Studied --------- Assault Rifle | -9/Materials | Hacked Lgt. Treads | -9/Materials | Hacked Com. Wheel | -9/Materials | Hacked Alien Tech Used ----------------- None Achievements -------------- None Challenges ------------ None Game ------ Seed AutogunSalvagePropulsion Manual? 0 Play Time 00:32:44 Cumulative 507.0 hours Start 2025.11.04 @ 20:25:56 End 2025.11.04 @ 20:52:14 Sessions 1 Manual Loads 0 Difficulty Rogue Special Mode None Game No. 273 Rogue 273 Adventurer 0 Explorer 0 Win Type - Total 22 Types 13/1/5/1/0/0/0/1/1/0 Lore% 94 Gallery% 88 Achievement% 79 Wizard Run 0 Options --------- Layout 2 ASCII 0 Keyboard 1 Movement Vi Keybinds 0 Fullscreen 1 Font 28/Cog Map View 50x52 Zoom Use 0% Tactical HUD 1 Map Filters NONE Filters NONE Steam 1 RUN: eea46009-ab19-438b-a56f-c1bc69e3029f